bitfinex/quotes_SOLUSD_20241214
["timestamp","ask_amount","ask_price","bid_price","bid_amount"]
[1734219642809,24.912984,220.04,219.93,20.5426087]
[1734219644197,24.912984,220.04,219.94,0.12549]
[1734219646232,20.0,220.01,219.93,0.5426087]
[1734219646406,23.776884,220.0,219.93,0.5426087]
[1734219648329,23.776884,219.98,219.93,0.5426087]
[1734219658459,7.9783,220.05,219.95,8.69791842]
[1734219658750,7.9783,220.05,219.96,0.12549]
[1734219658923,9.1144,220.05,219.96,0.12549]
[1734219659126,9.1144,220.05,219.95,0.12549]
[1734219660544,23.776884,220.04,219.95,0.12549]
[1734219660925,23.776884,220.04,219.95,30.12549]
[1734219663447,23.776884,220.02,219.95,30.0]
[1734219664538,20.0,220.01,219.93,0.5426087]
[1734219664845,23.776884,220.0,219.93,13.2426087]
[1734219667545,23.776884,220.0,219.94,0.25098]
[1734219668647,9.1144,220.05,219.94,0.25098]
[1734219669239,9.1144,220.05,219.96,0.12549]
[1734219669750,23.776884,220.04,219.96,0.12549]
[1734219670256,23.776884,220.04,219.96,12.81549]
[1734219673247,23.776884,220.04,219.96,0.12549]
[1734219673555,23.776884,220.04,219.95,0.25098]
[1734219674559,23.776884,220.04,219.95,0.12549]
[1734219675668,23.776884,220.04,219.94,30.0]
[1734219675836,23.776884,220.02,219.94,30.0]
[1734219677446,24.912984,220.04,219.93,0.5426087]
[1734219677649,23.776884,220.0,219.93,0.5426087]
[1734219679142,1.1364,219.99,219.93,0.5426087]
[1734219679347,23.776884,219.98,219.93,0.5426087]
[1734219682750,24.913184,220.0,219.93,0.5426087]
[1734219684065,12.9783,220.05,219.93,0.5426087]
[1734219684066,1.1361,220.04,219.94,0.12549]
[1734219686166,23.776884,220.03,219.94,0.12549]
[1734219686743,1.1362,220.02,219.94,0.12549]
[1734219686949,23.776884,220.01,219.94,0.12549]
[1734219687163,23.776884,220.01,219.93,0.5426087]
[1734219688655,23.776884,219.99,219.93,0.5426087]
[1734219697748,23.776884,219.99,219.94,0.12549]
[1734219698650,1.1361,220.04,219.96,0.25098]
[1734219699455,20.0,220.07,219.96,0.25098]
[1734219700059,23.776884,220.06,219.96,0.25098]
[1734219702156,23.776884,220.04,219.96,0.25098]
[1734219704773,23.776884,220.06,219.96,0.25098]
[1734219704971,9.31257927,220.11,219.96,0.25098]
[1734219704972,23.776884,220.08,219.96,8.94889842]
[1734219711381,1.136,220.07,219.95,1.6609]
[1734219711691,23.776884,220.04,219.95,1.6609]
[1734219712984,1.1362,220.03,219.95,1.6609]
[1734219713292,23.776884,220.02,219.95,1.6609]
[1734219714190,23.776884,220.02,219.96,0.12549]
[1734219718288,23.776884,220.02,219.96,0.25098]
[1734219718595,23.776884,220.04,219.96,0.25098]
[1734219718773,23.776884,220.06,219.96,8.94889842]
[1734219719033,23.776884,220.06,219.98,0.12549]
[1734219719290,23.776884,220.06,219.98,0.25098]
[1734219721696,23.776884,220.06,219.98,0.12549]
[1734219723395,23.776884,220.04,219.95,1.6609]
[1734219725113,23.776884,220.04,219.96,0.12549]
[1734219725697,23.776884,220.04,219.95,1.6609]
[1734219730455,1.1357,220.11,219.98,8.69791842]
[1734219730592,1.1357,220.11,219.99,0.12549]
[1734219731712,23.776884,220.1,219.99,0.12549]
[1734219733130,23.776884,220.08,219.97,0.12549]
[1734219734237,23.776884,220.08,219.98,30.0]
[1734219736813,23.776884,220.08,219.99,8.94889842]
[1734219737137,20.0,220.12,220.0,8.69791842]
[1734219737803,20.0,220.12,220.01,0.12549]
[1734219738003,20.0,220.12,220.02,1.5528]
[1734219738205,22.2711,220.16,220.02,8.0543]
[1734219738917,1.1354,220.17,220.04,8.69791842]
[1734219739249,1.1354,220.17,220.05,0.12549]
[1734219740215,21.1354,220.17,220.05,0.12549]
[1734219740531,23.776884,220.16,220.05,0.12549]
[1734219743030,23.776884,220.16,220.05,0.25098]
[1734219744445,23.776884,220.16,220.07,0.12549]
[1734219744643,23.776884,220.16,220.07,0.25098]
[1734219745635,23.776884,220.16,220.03,0.68149892]
[1734219745957,1.1355,220.15,220.03,0.12549]
[1734219746054,23.776884,220.14,220.02,8.0543]
[1734219746463,23.776884,220.14,220.03,0.12549]
[1734219746834,1.1355,220.15,220.03,0.12549]
[1734219747060,1.1355,220.15,220.05,0.12549]
[1734219747222,1.1355,220.15,220.05,0.25098]
[1734219748154,1.1355,220.15,220.06,0.25098]
[1734219748360,1.1354,220.19,220.1,6.0422]
[1734219749767,23.776884,220.18,220.1,6.0422]
[1734219767286,1.135,220.26,220.13,0.12549]
[1734219767587,1.135,220.26,220.14,8.94889842]
[1734219767799,1.135,220.26,220.15,1.6066]
[1734219769274,21.135,220.26,220.15,1.6066]
[1734219769889,23.776884,220.25,220.15,1.6066]
[1734219775599,20.0,220.2,220.15,1.6066]
[1734219775775,23.776884,220.19,220.1,6.0422]
[1734219789991,1.1354,220.18,220.1,6.0422]
[1734219790205,23.776884,220.17,220.09,1.6066]
[1734219790577,23.776884,220.17,220.05,6.2324]
[1734219791412,43.776884,220.15,220.05,6.2324]
[1734219792506,1.1356,220.14,220.05,6.2324]
[1734219792812,23.776884,220.13,220.05,6.2324]
[1734219796993,23.776884,220.13,220.06,30.0]
[1734219799642,23.776884,220.11,220.06,30.0]
[1734219800638,23.776884,220.11,220.05,6.2324]
[1734219800842,23.776884,220.11,220.04,1.5202]
[1734219801404,1.1357,220.12,220.0,6.2324]
[1734219801405,24.912884,220.07,220.0,6.2324]
[1734219802015,24.912884,220.07,220.01,30.0]
[1734219805808,24.912884,220.07,219.99,1.5202]
[1734219806210,24.912884,220.07,219.95,6.2324]
[1734219806539,23.776884,220.03,219.95,6.2324]
[1734219807040,25.391884,220.03,219.93,0.5426087]
[1734219808218,23.776884,220.01,219.93,0.5426087]
[1734219809215,23.776884,219.99,219.93,0.5426087]
[1734219810448,23.776884,219.97,219.93,0.5426087]
[1734219814443,23.776884,219.95,219.93,0.5426087]
[1734219815442,23.776884,219.95,219.93,8.7e-06]
[1734219815821,1.1364,220.0,219.93,8.7e-06]
[1734219817016,23.776884,219.99,219.93,8.7e-06]
[1734219825329,23.776884,219.95,219.93,8.7e-06]
[1734219826541,1.1366,219.94,219.93,8.7e-06]
[1734219826747,24.913484,219.94,219.93,8.7e-06]
[1734219829363,23.776884,219.97,219.93,8.7e-06]
[1734219832271,23.776884,219.95,219.93,8.7e-06]
[1734219834181,24.913484,219.94,219.93,8.7e-06]
[1734219835768,25.038974,219.94,219.93,8.7e-06]
[1734219836066,25.164464,219.94,219.93,8.7e-06]
[1734219838976,1.78375425,219.98,219.93,8.7e-06]
[1734219838977,1.1365,219.98,219.93,8.7e-06]
[1734219840157,23.776884,219.97,219.93,8.7e-06]
[1734219842859,20.0,220.0,219.93,8.7e-06]
[1734219843959,23.776884,219.99,219.93,8.7e-06]
[1734219846571,24.913284,219.99,219.93,8.7e-06]
[1734219853482,23.776884,219.95,219.93,8.7e-06]
[1734219858987,1.1364,219.99,219.93,8.7e-06]
[1734219859167,23.776884,219.98,219.93,8.7e-06]
[1734219865067,23.776884,219.98,219.93,30.0000087]
[1734219866282,23.776884,219.98,219.93,8.7e-06]
[1734219869186,23.776884,219.98,219.93,30.0000087]
[1734219873198,23.776884,219.98,219.93,8.7e-06]
[1734219874190,23.776884,219.96,219.93,8.7e-06]
[1734219875291,23.776884,219.94,219.93,8.7e-06]
[1734219887201,24.027864,219.94,219.93,8.7e-06]
[1734219888608,24.027864,219.94,219.84,30.0]
[1734219888609,23.776884,219.9,219.84,30.0]
[1734219888986,0.12549,219.91,219.84,30.0]
[1734219889694,23.776884,219.89,219.84,30.0]
[1734219890031,23.776884,219.89,219.85,8.69791842]
[1734219890190,23.776884,219.89,219.86,30.0]
[1734219895836,20.0,219.97,219.86,38.69791842]
[1734219896150,1.1364,219.99,219.92,8.69791842]
[1734219896751,1.136,220.06,219.94,8.69791842]
[1734219897010,0.12549,220.05,219.93,8.69791842]
[1734219897192,1.136,220.06,219.93,8.69791842]
[1734219897698,0.12549,220.05,219.93,8.69791842]
[1734219898119,20.12549,220.05,219.93,8.69791842]
[1734219898725,23.776884,220.0,219.93,8.69791842]
[1734219899341,23.776884,220.0,219.89,20.0]
[1734219899549,23.776884,220.0,219.93,8.69791842]
[1734219901930,23.776884,220.0,219.88,2.18778901]
[1734219901931,23.776884,220.0,219.94,8.69791842]
[1734219902697,23.776884,220.0,219.93,8.69791842]
[1734219902917,23.776884,220.0,219.89,20.0]
[1734219903236,23.776884,219.98,219.94,12.73]
[1734219904499,23.776884,220.0,219.89,12.73]
[1734219904689,23.776884,219.96,219.89,12.73]
[1734219904931,23.776884,219.92,219.8,1.5151]
[1734219905101,23.776884,219.92,219.8,10.21301842]
[1734219905527,23.776884,219.92,219.81,12.73]
[1734219906028,23.776884,219.9,219.81,12.73]
[1734219909731,23.776884,219.88,219.81,12.73]
[1734219912109,23.776884,219.88,219.78,8.69791842]
[1734219915003,23.776884,219.86,219.78,8.69791842]
[1734219918304,23.776884,219.84,219.74,8.69791842]
[1734219919465,23.776884,219.82,219.74,8.69791842]
[1734219920039,23.776884,219.82,219.71,0.5426087]
[1734219920356,20.0,219.81,219.73,8.69791842]
[1734219920565,23.776884,219.8,219.72,8.69791842]
[1734219920927,23.776884,219.8,219.74,8.69791842]
[1734219922945,23.776884,219.8,219.76,8.69791842]
[1734219923953,23.776884,219.8,219.71,0.5426087]
[1734219923954,23.776884,219.8,219.75,8.69791842]
[1734219924546,23.776884,219.8,219.74,8.69791842]
[1734219924952,6.3294,219.85,219.76,8.69791842]
[1734219925450,6.3294,219.85,219.73,0.25098]
[1734219925640,6.3294,219.85,219.75,8.69791842]
[1734219925830,7.4665,219.85,219.72,20.0]
[1734219926030,7.4665,219.85,219.73,8.69791842]
[1734219926031,23.776884,219.84,219.73,8.69791842]
[1734219927351,23.776884,219.82,219.73,8.69791842]
[1734219928040,23.776884,219.82,219.74,8.69791842]
[1734219929340,23.776884,219.82,219.73,8.69791842]
[1734219930854,0.12549,219.83,219.71,0.5426087]
[1734219931123,0.12549,219.83,219.72,8.69791842]
[1734219931230,20.0,219.81,219.72,8.69791842]
[1734219931434,23.776884,219.8,219.71,0.5426087]
[1734219931652,25.411984,219.8,219.71,0.5426087]
[1734219932558,23.776884,219.78,219.71,0.5426087]
[1734219932932,23.776884,219.78,219.71,0.0426087]
[1734219934032,20.0,219.75,219.71,0.0426087]
[1734219934374,23.776884,219.74,219.71,0.0426087]
[1734219940585,23.776884,219.75,219.71,0.0426087]
[1734219941304,23.776884,219.76,219.71,0.0426087]
[1734219952594,23.776884,219.74,219.71,0.0426087]
[1734219961619,1.1375,219.79,219.71,0.0426087]
[1734219963110,20.0,219.78,219.71,8.74052712]
[1734219963299,23.776884,219.78,219.72,8.69791842]
[1734219964127,23.776884,219.78,219.71,0.0426087]
[1734219964437,23.776884,219.8,219.71,8.74052712]
[1734219965029,1.1373,219.81,219.73,8.69791842]
[1734219965236,2.6825,219.85,219.74,8.69791842]
[1734219965439,2.6825,219.85,219.75,8.69791842]
[1734219966660,23.776884,219.84,219.75,8.69791842]
[1734219966837,1.1371,219.85,219.77,8.69791842]
[1734219967451,12.63988757,219.89,219.78,8.69791842]
[1734219967947,12.63988757,219.89,219.77,8.69791842]
[1734219969475,23.776884,219.86,219.73,6.5674]
[1734219969753,23.776884,219.86,219.73,15.26531842]
[1734219970561,23.776884,219.84,219.73,15.26531842]
[1734219971363,23.776884,219.84,219.74,8.69791842]
[1734219972534,1.1372,219.83,219.73,6.5674]
[1734219972728,23.776884,219.82,219.73,6.5674]
[1734219973037,23.776884,219.82,219.74,30.0]
[1734219973263,23.776884,219.82,219.73,6.5674]
[1734219973548,23.776884,219.82,219.73,15.26531842]
[1734219974517,23.776884,219.82,219.74,8.69791842]
[1734219974838,23.776884,219.82,219.76,8.69791842]
[1734219975233,20.0,219.86,219.77,8.69791842]
[1734219976052,20.0,219.86,219.78,8.69791842]
[1734219976349,1.137,219.87,219.78,8.69791842]
[1734219976559,23.776884,219.86,219.78,8.69791842]
[1734219977928,23.776884,219.86,219.77,8.69791842]
[1734219978962,11.50298757,219.89,219.78,30.0]
[1734219978963,23.776884,219.84,219.78,30.0]
[1734219979964,23.776884,219.84,219.74,8.69791842]
[1734219980140,23.776884,219.84,219.75,30.0]
[1734219980141,24.914084,219.84,219.75,30.0]
[1734219986778,24.914084,219.84,219.73,8.69791842]
[1734219989546,24.914084,219.84,219.71,1.5717087]
[1734219989547,24.914084,219.84,219.74,10.53]
[1734219995401,23.776884,219.76,219.74,10.53]
[1734219996493,23.776884,219.76,219.71,0.0426087]
[1734219996861,24.914484,219.76,219.71,0.0426087]
[1734219999668,23.776884,219.76,219.71,8.74052712]
[1734220000193,23.776884,219.76,219.71,0.0426087]
[1734220009098,1.1374,219.8,219.73,8.69791842]
[1734220009280,1.1374,219.8,219.74,8.69791842]
[1734220010380,23.776884,219.79,219.73,8.69791842]
[1734220011884,23.776884,219.79,219.71,8.74052712]
[1734220012074,23.776884,219.79,219.71,0.0426087]
[1734220013318,23.776884,219.79,219.71,8.74052712]
[1734220013489,23.776884,219.79,219.72,8.69791842]
[1734220013712,23.776884,219.79,219.73,8.69791842]
[1734220014503,1.1374,219.8,219.73,8.69791842]
[1734220015509,23.776884,219.79,219.72,8.69791842]
[1734220019339,23.776884,219.79,219.73,8.69791842]
[1734220019622,23.776884,219.83,219.77,8.69791842]
[1734220020310,23.776884,219.83,219.76,8.69791842]
[1734220021310,23.776884,219.83,219.75,8.69791842]
[1734220023343,1.1372,219.82,219.73,28.69791842]
[1734220023497,23.776884,219.81,219.71,8.74052712]
[1734220024818,23.776884,219.81,219.72,8.69791842]
[1734220026122,23.776884,219.81,219.73,8.69791842]
[1734220027202,23.776884,219.81,219.72,8.69791842]
[1734220029225,23.776884,219.81,219.73,8.69791842]
[1734220032818,23.776884,219.79,219.73,8.69791842]
[1734220034430,23.776884,219.79,219.71,8.74052712]
[1734220034732,1.1375,219.78,219.71,0.0426087]
[1734220035232,23.776884,219.77,219.71,0.0426087]
[1734220036007,23.776884,219.75,219.71,0.0426087]
[1734220040841,23.776884,219.73,219.71,0.0426087]
[1734220041036,25.581164,219.72,219.71,8.7e-06]
[1734220041248,31.694164,219.72,219.71,8.7e-06]
[1734220041536,0.12549,219.7,219.57,8.69791842]
[1734220041711,23.776884,219.67,219.58,8.69791842]
[1734220043308,23.776884,219.67,219.54,1.6171]
[1734220043514,23.776884,219.67,219.58,8.69791842]
[1734220044135,23.776884,219.65,219.51,20.6829432]
[1734220044329,23.776884,219.65,219.56,8.69791842]
[1734220044536,23.776884,219.65,219.58,8.69791842]
[1734220044842,23.776884,219.65,219.53,0.12549]
[1734220045016,23.776884,219.65,219.59,8.69791842]
[1734220045212,23.776884,219.65,219.53,0.12549]
[1734220045436,23.776884,219.65,219.58,8.69791842]
[1734220045619,1.5965,219.66,219.61,8.69791842]
[1734220045825,1.1379,219.7,219.61,8.69791842]
[1734220046353,1.1379,219.7,219.57,0.68290095]
[1734220046547,1.1379,219.7,219.61,8.69791842]
[1734220046907,1.1379,219.7,219.62,8.69791842]
[1734220047110,23.776884,219.69,219.62,8.69791842]
[1734220049816,23.776884,219.69,219.61,8.69791842]
[1734220051134,23.776884,219.69,219.59,20.0]
[1734220051317,1.1379,219.7,219.52,5.0]
[1734220051318,43.776884,219.67,219.58,8.69791842]
[1734220052751,43.776884,219.67,219.57,8.69791842]
[1734220053233,23.776884,219.64,219.55,8.69791842]
[1734220053628,23.776884,219.64,219.56,8.69791842]
[1734220055070,23.776884,219.64,219.55,8.69791842]
[1734220058940,23.776884,219.64,219.51,0.68310825]
[1734220059136,23.776884,219.64,219.55,8.69791842]
[1734220059545,23.776884,219.64,219.56,30.0]
[1734220059975,23.776884,219.64,219.56,38.69791842]
[1734220060136,1.1381,219.65,219.57,8.69791842]
[1734220060569,1.1381,219.65,219.58,30.0]
[1734220061549,23.776884,219.64,219.58,30.0]
[1734220063470,23.776884,219.64,219.54,8.69791842]
[1734220063678,23.776884,219.64,219.55,30.0]
[1734220065068,7.857,219.66,219.55,30.0]
[1734220065069,23.776884,219.62,219.55,30.0]
[1734220070773,1.1382,219.63,219.55,38.69791842]
[1734220070977,7.857,219.66,219.58,8.69791842]
[1734220071600,7.857,219.66,219.57,8.69791842]
[1734220072076,23.776884,219.65,219.57,8.69791842]
[1734220076167,23.776884,219.65,219.52,0.68304737]
[1734220076490,23.776884,219.65,219.56,8.69791842]
[1734220078469,23.776884,219.65,219.57,8.69791842]
[1734220079275,23.776884,219.65,219.58,12.81]
[1734220079854,23.776884,219.65,219.57,8.69791842]
[1734220080056,23.776884,219.65,219.52,0.68304737]
[1734220080276,23.776884,219.65,219.54,30.0]
[1734220080455,23.776884,219.65,219.56,8.69791842]
[1734220080903,23.776884,219.65,219.57,8.69791842]
[1734220081381,23.776884,219.63,219.57,8.69791842]
[1734220083164,23.776884,219.63,219.54,30.0]
[1734220083480,23.776884,219.63,219.57,8.69791842]
[1734220089302,23.776884,219.63,219.54,30.0]
[1734220089505,23.776884,219.63,219.54,38.69791842]
[1734220091162,1.1382,219.64,219.54,38.69791842]
[1734220091479,1.1382,219.64,219.55,8.69791842]
[1734220093168,1.1383,219.62,219.54,38.69791842]
[1734220093371,23.776884,219.65,219.57,8.69791842]
[1734220093372,24.914984,219.65,219.57,8.69791842]
[1734220094494,24.914984,219.65,219.56,8.69791842]
[1734220094799,1.6377,219.66,219.63,8.69791842]
[1734220095199,1.6014,219.71,219.62,8.69791842]
[1734220099183,2.7392,219.71,219.62,8.69791842]
[1734220100106,2.7392,219.71,219.63,8.69791842]
[1734220101388,2.7392,219.71,219.59,0.68286117]
[1734220101656,2.7392,219.71,219.63,8.69791842]
[1734220102504,1.6014,219.71,219.64,8.69791842]
[1734220102712,1.6014,219.71,219.65,8.69791842]
[1734220103810,1.6014,219.71,219.6,0.12549]
[1734220104112,1.6014,219.71,219.63,8.69791842]
[1734220106587,1.6014,219.71,219.64,8.69791842]
[1734220108609,1.6014,219.71,219.65,8.69791842]
[1734220109320,1.6087,219.77,219.7,8.69791842]
[1734220109625,1.6087,219.77,219.73,8.69791842]
[1734220109934,1.6087,219.77,219.72,8.69791842]
[1734220111104,1.6087,219.77,219.71,8.69791842]
[1734220111413,23.776884,219.76,219.65,20.0]
[1734220111603,23.776884,219.76,219.67,8.69791842]
[1734220111919,23.776884,219.76,219.69,8.69791842]
[1734220112292,23.776884,219.76,219.65,20.0]
[1734220112511,23.776884,219.76,219.68,8.69791842]
[1734220113707,0.12549,219.75,219.65,8.69791842]
[1734220114599,23.776884,219.73,219.65,8.69791842]
[1734220116092,23.776884,219.73,219.64,8.69791842]
[1734220119499,23.776884,219.73,219.61,20.0]
[1734220119717,23.776884,219.73,219.64,8.69791842]
[1734220120522,8.0552,219.71,219.57,20.0]
[1734220120730,8.0552,219.71,219.6,8.69791842]
[1734220120731,23.776884,219.7,219.6,8.69791842]
[1734220121102,8.0552,219.71,219.65,8.69791842]
[1734220121411,8.0552,219.71,219.66,8.69791842]
[1734220121731,8.0552,219.71,219.67,8.69791842]
[1734220122094,8.0552,219.71,219.65,8.69791842]
[1734220124895,8.0552,219.71,219.66,8.69791842]
[1734220127506,1.1376,219.76,219.6,0.68275494]
[1734220127507,1.626,219.77,219.68,8.69791842]
[1734220127709,1.626,219.77,219.7,8.69791842]
[1734220128021,1.626,219.77,219.68,8.69791842]
[1734220130248,1.626,219.77,219.65,0.12549]
[1734220130456,1.626,219.77,219.68,8.69791842]
[1734220136057,1.626,219.77,219.69,8.69791842]
[1734220136424,1.626,219.77,219.7,8.69791842]
[1734220138826,1.626,219.77,219.72,8.69791842]
[1734220140752,23.776884,219.82,219.72,8.69791842]
[1734220141567,23.776884,219.82,219.73,8.69791842]
[1734220142427,23.776884,219.82,219.74,8.69791842]
[1734220143148,2.71,219.83,219.74,8.69791842]
[1734220145137,1.5728,219.83,219.74,8.69791842]
[1734220145460,1.5728,219.83,219.73,30.0]
[1734220145642,1.5728,219.83,219.73,38.69791842]
[1734220147029,1.5728,219.83,219.74,8.69791842]
[1734220151862,1.5728,219.83,219.73,30.0]
[1734220152055,0.12549,219.82,219.73,30.0]
[1734220152252,23.776884,219.8,219.73,30.0]
[1734220153261,8.3118,219.78,219.68,8.69791842]
[1734220153471,23.776884,219.77,219.68,8.69791842]
[1734220153641,23.776884,219.77,219.67,8.69791842]
[1734220155745,23.776884,219.77,219.65,0.12549]
[1734220156056,23.776884,219.77,219.67,8.69791842]
[1734220157354,23.776884,219.77,219.68,8.69791842]
[1734220159741,0.12549,219.76,219.66,8.69791842]
[1734220159946,23.776884,219.74,219.64,8.69791842]
[1734220161168,1.6541,219.73,219.64,8.69791842]
[1734220161667,23.776884,219.72,219.64,8.69791842]
[1734220162570,23.776884,219.72,219.65,8.69791842]
[1734220164286,23.776884,219.72,219.61,20.0]
[1734220164473,23.776884,219.72,219.6,0.12549]
[1734220164643,23.776884,219.72,219.6,20.12549]
[1734220164942,23.776884,219.72,219.64,8.69791842]
[1734220165144,23.776884,219.72,219.6,20.12549]
[1734220165378,23.776884,219.72,219.64,8.69791842]
[1734220168358,1.6541,219.73,219.66,8.69791842]
[1734220168574,1.6541,219.73,219.67,8.69791842]
[1734220170390,1.6541,219.73,219.66,8.69791842]
[1734220174275,1.6541,219.73,219.63,0.68272588]
[1734220174276,1.6541,219.73,219.67,8.69791842]
[1734220174488,1.6541,219.73,219.66,8.69791842]
[1734220178994,1.6541,219.73,219.65,8.69791842]
[1734220179570,1.6541,219.73,219.64,8.69791842]
[1734220179776,1.6541,219.73,219.65,8.69791842]
[1734220183300,1.6541,219.73,219.62,0.12549]
[1734220183493,1.6541,219.73,219.65,8.69791842]
[1734220183797,1.6541,219.73,219.63,8.69791842]
[1734220185104,6.473,219.71,219.62,8.69791842]
[1734220185601,6.473,219.71,219.61,8.69791842]
[1734220186172,6.473,219.71,219.6,20.0]
[1734220186400,6.473,219.71,219.61,8.69791842]
[1734220187071,6.473,219.71,219.62,8.69791842]
[1734220187272,6.473,219.71,219.63,8.69791842]
[1734220187523,6.473,219.71,219.65,8.69791842]
[1734220188794,6.473,219.71,219.64,8.69791842]
[1734220192987,6.473,219.71,219.59,2.782449]
[1734220192988,6.473,219.71,219.58,20.68279625]
[1734220193313,6.473,219.71,219.61,8.69791842]
[1734220195991,23.776884,219.7,219.61,8.69791842]
[1734220199185,23.776884,219.7,219.62,8.69791842]
[1734220199811,23.776884,219.7,219.64,4.9]
[1734220204090,23.776884,219.7,219.65,30.0]
[1734220207117,24.914784,219.7,219.65,30.0]
[1734220207511,24.914784,219.7,219.64,4.9]
[1734220215547,6.473,219.71,219.65,12.78]
[1734220216431,23.776884,219.7,219.65,12.78]
[1734220216942,23.776884,219.7,219.64,4.9]
[1734220222458,7.6109,219.71,219.64,4.9]
[1734220238657,1.6541,219.73,219.65,0.12549]
[1734220239949,1.6541,219.73,219.65,30.12549]
[1734220240349,23.776884,219.72,219.65,30.0]
[1734220240548,24.914684,219.72,219.65,30.0]
[1734220240758,6.0242,219.71,219.65,30.0]
[1734220240940,6.0242,219.71,219.64,4.9]
[1734220241761,1.1379,219.7,219.64,4.9]
[1734220248905,6.0242,219.71,219.64,4.9]
[1734220248906,20.0,219.66,219.64,4.9]
[1734220249461,21.5001,219.66,219.64,4.9]
[1734220250976,24.914984,219.65,219.64,4.9]
[1734220251370,31.410384,219.65,219.64,4.9]
[1734220251572,31.535874,219.65,219.64,0.3495]
[1734220251781,20.0,219.62,219.52,30.0]
[1734220251986,23.776884,219.61,219.52,30.0]
[1734220258931,23.776884,219.61,219.5,8.69791842]
[1734220258932,23.776884,219.58,219.51,12.81]
[1734220259082,23.776884,219.58,219.49,0.5426087]
[1734220260379,7.9955,219.6,219.5,0.12549]
[1734220260586,7.9955,219.6,219.51,8.69791842]
[1734220260888,7.9955,219.6,219.52,0.12549]
[1734220261313,7.9955,219.6,219.5,8.82340842]
[1734220261980,7.9955,219.6,219.5,0.12549]
[1734220262178,7.9955,219.6,219.5,30.12549]
[1734220263070,7.9955,219.6,219.5,38.82340842]
[1734220267885,1.1383,219.63,219.5,38.82340842]
[1734220267886,7.6529,219.65,219.54,8.82340842]
[1734220268199,7.6529,219.65,219.54,0.12549]
[1734220268499,7.6529,219.65,219.55,13.58]
[1734220268668,7.6529,219.65,219.56,0.12549]
[1734220269685,7.6529,219.65,219.56,13.70549]
[1734220272715,7.6529,219.65,219.56,22.40340842]
[1734220274695,7.6529,219.65,219.56,13.70549]
[1734220276794,7.6529,219.65,219.56,0.25098]
[1734220276979,7.6529,219.65,219.56,8.94889842]
[1734220277977,7.6529,219.65,219.55,0.25098]
[1734220278206,7.6529,219.65,219.54,0.12549]
[1734220278780,7.6529,219.65,219.54,0.25098]
[1734220281296,7.6529,219.65,219.56,0.12549]
[1734220287102,7.6529,219.65,219.58,0.12549]
[1734220287293,1.5217,219.7,219.6,8.82340842]
[1734220288529,1.5217,219.7,219.58,0.68290095]
[1734220288530,1.5217,219.7,219.59,0.12549]
[1734220290493,24.914784,219.69,219.59,0.12549]
[1734220290815,24.914784,219.69,219.56,0.12549]
[1734220291418,24.914784,219.69,219.56,0.25098]
[1734220295810,24.914784,219.69,219.56,8.94889842]
[1734220297829,20.0,219.68,219.56,8.94889842]
[1734220298009,1.1379,219.69,219.58,0.25098]
[1734220298325,1.1379,219.69,219.58,8.94889842]
[1734220300107,1.1379,219.69,219.58,0.25098]
[1734220302098,1.1379,219.69,219.57,0.25098]
[1734220304912,1.1379,219.69,219.58,28.69791842]
[1734220305114,1.1379,219.69,219.59,0.12549]
[1734220305626,1.1379,219.69,219.59,0.93388321]
[1734220306147,1.5217,219.7,219.63,20.0]
[1734220307421,1.5217,219.7,219.61,9.38072462]
[1734220307622,1.5217,219.7,219.62,0.12549]
[1734220308619,1.5217,219.7,219.61,0.12549]
[1734220309719,1.5217,219.7,219.61,0.25098]
[1734220313924,1.5217,219.7,219.61,8.94889842]
[1734220314124,1.5217,219.7,219.63,0.25098]
[1734220314430,1.5217,219.7,219.63,8.94889842]
[1734220315254,1.5217,219.7,219.63,9.63162929]
[1734220319823,1.5217,219.7,219.63,0.93371087]
[1734220323153,1.5217,219.7,219.63,9.63162929]